fUST/lending_fUST_20260623
["ID","MTS","AMOUNT","RATE_DAILY","PERIOD"]
[426153054,1782183043000,-1240.44923631,0.00021978,2]
[426153070,1782183043000,-499.982154,0.00022,2]
[426153068,1782183043000,-274.014857,0.00022,2]
[426153072,1782183043000,-499.982154,0.00022,2]
[426153075,1782183043000,-758.07,0.00022191,2]
[426153074,1782183043000,-194.133792,0.00022108,14]
[426153073,1782183043000,-499.982154,0.00022,2]
[426153076,1782183043000,-1289.17,0.00022191,2]
[426153077,1782183043000,-151.0,0.000222,6]
[426153080,1782183043000,-1000.0,0.00022314,10]
[426153079,1782183043000,-174.43165857,0.00022311,2]
[426153081,1782183043000,-758.07,0.00022465,2]
[426153078,1782183043000,-151.0,0.00022254,3]
[426153025,1782183043000,-410.24143843,0.00021627,2]
[426153063,1782183043000,-252.590178,0.00022,2]
[426153055,1782183043000,-44633.95567355,0.00022,30]
[426153066,1782183043000,-274.014857,0.00022,2]
[426153053,1782183043000,-1150.178588,0.00021959,14]
[426153027,1782183043000,-329.01934238,0.00021627,2]
[426153052,1782183043000,-261.087377,0.00021959,14]
[426153030,1782183043000,-758.07,0.00021643,2]
[426153029,1782183043000,-333.43565885,0.00021627,2]
[426153032,1782183043000,-758.07,0.00021917,2]
[426153028,1782183043000,-292.04824975,0.00021627,2]
[426153031,1782183043000,-1289.17,0.00021643,2]
[426153033,1782183043000,-1289.17,0.00021917,2]
[426153035,1782183043000,-1000.0,0.00021917,2]
[426153038,1782183043000,-499.982154,0.00021918,2]
[426153036,1782183043000,-1000.0,0.00021917,2]
[426153037,1782183043000,-511.11413599,0.00021917,2]
[426153039,1782183043000,-499.982154,0.00021918,2]
[426153034,1782183043000,-1000.0,0.00021917,2]
[426153048,1782183043000,-6392.498723,0.00021959,14]
[426153051,1782183043000,-702.926603,0.00021959,14]
[426153042,1782183043000,-499.982154,0.00021918,2]
[426153050,1782183043000,-782.559418,0.00021959,14]
[426153049,1782183043000,-3276.786487,0.00021959,14]
[426153044,1782183043000,-499.982154,0.00021918,2]
[426153047,1782183043000,-244.447713,0.00021959,14]
[426153043,1782183043000,-499.982154,0.00021918,2]
[426153045,1782183043000,-499.982154,0.00021918,2]
[426153046,1782183043000,-1584.0,0.00021918,5]
[426153041,1782183043000,-499.982154,0.00021918,2]
[426153040,1782183043000,-499.982154,0.00021918,2]
[426153123,1782183044000,-901.65949715,0.00022967,90]
[426153125,1782183044000,-207.89,0.00022976,7]
[426153124,1782183044000,-160.0,0.00022974,12]
[426153126,1782183044000,-1129.62,0.00022982,30]
[426153122,1782183044000,-1246.40106432,0.00022967,7]
[426153115,1782183044000,-185.3,0.000229,2]
[426153121,1782183044000,-442.1104,0.00022967,2]
[426153119,1782183044000,-183.19,0.00022944,7]
[426153118,1782183044000,-1242.41,0.00022926,7]
[426153117,1782183044000,-207.89,0.00022926,7]
[426153127,1782183044000,-183.19,0.00022994,7]
[426153120,1782183044000,-456.18,0.00022944,7]
[426153129,1782183044000,-657.12589114,0.00023004,7]
[426153143,1782183044000,-301.05,0.00023048,30]
[426153128,1782183044000,-647.95,0.00023,120]
[426153130,1782183044000,-150.0129679,0.00023013,30]
[426153132,1782183044000,-290.39,0.00023017,120]
[426153134,1782183044000,-209.07599996,0.00023025,30]
[426153133,1782183044000,-158.39,0.00023017,30]
[426153135,1782183044000,-207.89,0.00023026,7]
[426153137,1782183044000,-1740.385468,0.00023026,14]
[426153136,1782183044000,-801.45153597,0.00023026,7]
[426153141,1782183044000,-417.15472785,0.00023046,7]
[426153140,1782183044000,-160.0,0.00023046,7]
[426153138,1782183044000,-183.19,0.00023044,7]
[426153139,1782183044000,-994.9,0.00023046,30]
[426153116,1782183044000,-622.31105404,0.00022915,120]
[426153131,1782183044000,-1109.63,0.00023014,30]
[426153114,1782183044000,-364.01,0.000229,30]
[426153082,1782183044000,-1289.17,0.00022465,2]
[426153112,1782183044000,-183.19,0.00022894,7]
[426153142,1782183044000,-1085.0,0.00023046,120]
[426153083,1782183044000,-678.21,0.00022466,5]
[426153087,1782183044000,-12683.77442413,0.0002254,2]
[426153085,1782183044000,-6120.806995,0.00022517,14]
[426153089,1782183044000,-160.0,0.00022559,14]
[426153090,1782183044000,-242.667239,0.00022559,14]
[426153097,1782183044000,-74454.97556836,0.00022766,2]
[426153095,1782183044000,-155.2113454,0.00022743,3]
[426153091,1782183044000,-325.334478,0.00022559,14]
[426153098,1782183044000,-207.89,0.00022776,7]
[426153092,1782183044000,-856.89600421,0.0002259,2]
[426153094,1782183044000,-1289.35495955,0.00022739,2]
[426153093,1782183044000,-758.24,0.00022739,2]
[426153096,1782183044000,-553.83025251,0.00022744,2]
[426153099,1782183044000,-1247.34,0.00022776,7]
[426153101,1782183044000,-457.99,0.00022794,7]
[426153100,1782183044000,-183.19,0.00022794,7]
[426153102,1782183044000,-151.0,0.000228,8]
[426153103,1782183044000,-1330.387468,0.00022801,14]
[426153104,1782183044000,-200.0,0.00022818,120]
[426153106,1782183044000,-1247.34,0.00022826,7]
[426153109,1782183044000,-200.0,0.00022849,120]
[426153110,1782183044000,-207.89,0.00022876,7]
[426153107,1782183044000,-183.19,0.00022844,7]
[426153108,1782183044000,-457.99,0.00022844,7]
[426153105,1782183044000,-207.89,0.00022826,7]
[426153111,1782183044000,-1247.34,0.00022876,7]
[426153113,1782183044000,-457.99,0.00022894,7]
[426153144,1782183044000,-1000.88564504,0.0002306,30]
[426153204,1782183044000,-327.087283,0.00023071,2]
[426153145,1782183044000,-295.4915542,0.00023061,3]
[426153174,1782183044000,-502.8583662,0.00023071,30]
[426153178,1782183044000,-4575.83,0.00023071,30]
[426153180,1782183044000,-150.0,0.00023071,2]
[426153182,1782183044000,-1284.25033094,0.00023071,2]
[426153175,1782183044000,-156.0,0.00023071,120]
[426153183,1782183044000,-600.0,0.00023071,2]
[426153185,1782183044000,-165.31,0.00023071,2]
[426153184,1782183044000,-165.28,0.00023071,2]
[426153186,1782183044000,-165.31,0.00023071,2]
[426153189,1782183044000,-165.31,0.00023071,2]
[426153188,1782183044000,-165.31,0.00023071,2]
[426153190,1782183044000,-151.0000001,0.00023071,2]
[426153187,1782183044000,-165.31,0.00023071,2]
[426153191,1782183044000,-151.0,0.00023071,2]
[426153193,1782183044000,-327.0402988,0.00023071,2]
[426153192,1782183044000,-458.1564556,0.00023071,2]
[426153195,1782183044000,-458.0290866,0.00023071,2]
[426153194,1782183044000,-327.087283,0.00023071,2]
[426153197,1782183044000,-151.0,0.00023071,2]
[426153196,1782183044000,-327.0402988,0.00023071,2]
[426153146,1782183044000,-200.0,0.00023061,3]
[426153199,1782183044000,-151.9898312,0.00023071,2]
[426153201,1782183044000,-457.5282362,0.00023071,2]
[426153200,1782183044000,-327.040299,0.00023071,2]
[426153202,1782183044000,-151.0,0.00023071,2]
[426153203,1782183044000,-330.9858043,0.00023071,2]
[426153205,1782183044000,-327.040299,0.00023071,2]
[426153179,1782183044000,-150.0,0.00023071,7]
[426153177,1782183044000,-156.0,0.00023071,120]
[426153198,1782183044000,-458.1564556,0.00023071,2]
[426153176,1782183044000,-181.0,0.00023071,120]
[426153181,1782183044000,-907.06504217,0.00023071,7]
[426153147,1782183044000,-463.8160537,0.00023064,2]
[426153149,1782183044000,-151.0,0.00023064,2]
[426153148,1782183044000,-151.0,0.00023064,2]
[426153151,1782183044000,-151.4627661,0.00023064,2]
[426153152,1782183044000,-151.0778189,0.00023064,2]
[426153153,1782183044000,-151.0,0.00023064,2]
[426153154,1782183044000,-151.0,0.00023064,2]
[426153155,1782183044000,-151.0,0.00023064,2]
[426153156,1782183044000,-151.0,0.00023064,2]
[426153159,1782183044000,-458.2258714,0.00023064,2]
[426153158,1782183044000,-327.087283,0.00023064,2]
[426153157,1782183044000,-151.0,0.00023064,2]
[426153150,1782183044000,-151.0,0.00023064,2]
[426153161,1782183044000,-458.2258714,0.00023064,2]
[426153160,1782183044000,-151.0,0.00023064,2]
[426153172,1782183044000,-165.0,0.0002307,120]
[426153173,1782183044000,-169.0,0.0002307,120]
[426153170,1782183044000,-151.1259752,0.00023064,2]
[426153169,1782183044000,-151.0,0.00023064,2]
[426153167,1782183044000,-457.4387321,0.00023064,2]
[426153171,1782183044000,-155.0,0.0002307,120]
[426153163,1782183044000,-151.0,0.00023064,2]
[426153164,1782183044000,-458.2258714,0.00023064,2]
[426153162,1782183044000,-327.087283,0.00023064,2]
[426153165,1782183044000,-327.087283,0.00023064,2]
[426153168,1782183044000,-326.3450624,0.00023064,2]
[426153166,1782183044000,-151.0,0.00023064,2]
[426153227,1782183045000,-313.879524,0.00023071,10]
[426153228,1782183045000,-965.15960228,0.00023071,2]
[426153233,1782183045000,-252.590178,0.00023071,2]
[426153232,1782183045000,-252.590178,0.00023071,2]
[426153234,1782183045000,-252.590178,0.00023071,2]
[426153235,1782183045000,-252.590178,0.00023071,2]
[426153239,1782183045000,-274.014857,0.00023071,2]
[426153237,1782183045000,-274.014857,0.00023071,2]
[426153242,1782183045000,-499.982154,0.00023071,2]
[426153238,1782183045000,-274.014857,0.00023071,2]
[426153244,1782183045000,-500.0,0.00023073,30]
[426153236,1782183045000,-274.014857,0.00023071,2]
[426153241,1782183045000,-499.982154,0.00023071,2]
[426153243,1782183045000,-499.982154,0.00023071,2]
[426153245,1782183045000,-500.0,0.00023073,30]
[426153246,1782183045000,-500.0,0.00023073,30]
[426153247,1782183045000,-500.0,0.00023073,30]
[426153248,1782183045000,-500.0,0.00023073,30]
[426153250,1782183045000,-158.0,0.00023073,120]
[426153229,1782183045000,-246.9750412,0.00023071,2]
[426153240,1782183045000,-499.982154,0.00023071,2]
[426153225,1782183045000,-458.1564557,0.00023071,2]
[426153216,1782183045000,-151.0,0.00023071,2]
[426153226,1782183045000,-151.0,0.00023071,2]
[426153252,1782183045000,-155.0,0.00023073,120]
[426153207,1782183045000,-224.7310182,0.00023071,2]
[426153206,1782183045000,-151.2557377,0.00023071,2]
[426153208,1782183045000,-151.0,0.00023071,2]
[426153209,1782183045000,-327.0402988,0.00023071,2]
[426153210,1782183045000,-326.8568479,0.00023071,2]
[426153211,1782183045000,-284.7675449,0.00023071,2]
[426153212,1782183045000,-326.121114,0.00023071,2]
[426153213,1782183045000,-327.0402988,0.00023071,2]
[426153230,1782183045000,-327.087283,0.00023071,2]
[426153215,1782183045000,-327.087283,0.00023071,2]
[426153217,1782183045000,-458.0970838,0.00023071,2]
[426153218,1782183045000,-458.1564556,0.00023071,2]
[426153219,1782183045000,-151.6742434,0.00023071,2]
[426153220,1782183045000,-327.040299,0.00023071,2]
[426153221,1782183045000,-151.0,0.00023071,2]
[426153223,1782183045000,-326.6250998,0.00023071,2]
[426153222,1782183045000,-458.2258714,0.00023071,2]
[426153224,1782183045000,-327.087283,0.00023071,2]
[426153231,1782183045000,-326.4850775,0.00023071,2]
[426153214,1782183045000,-151.0,0.00023071,2]
[426153251,1782183045000,-162.0,0.00023073,120]
[426153288,1782183045000,-5300.28379073,0.00023444,2]
[426153253,1782183045000,-207.89,0.00023076,7]
[426153280,1782183045000,-200.0,0.00023413,120]
[426153278,1782183045000,-160.0,0.00023409,14]
[426153281,1782183045000,-207.89,0.00023426,7]
[426153282,1782183045000,-171.0,0.00023436,120]
[426153283,1782183045000,-200.0,0.00023442,120]
[426153285,1782183045000,-477150.31534653,0.00023444,2]
[426153284,1782183045000,-183.19,0.00023444,7]
[426153298,1782183045000,-1027.92169569,0.00017087,2]
[426153287,1782183045000,-8046.20843586,0.00023444,2]
[426153286,1782183045000,-2934.60582529,0.00023444,2]
[426153289,1782183045000,-250.89,0.00023444,2]
[426153290,1782183045000,-2566.85271198,0.00023444,2]
[426153291,1782183045000,-7862.01569145,0.00023444,2]
[426153294,1782183045000,-4940.82730282,0.00023444,2]
[426153295,1782183045000,-671.77936835,0.00023444,2]
[426153296,1782183045000,-2640.4418636,0.00023444,2]
[426153292,1782183045000,-3223.86641956,0.00023444,2]
[426153297,1782183045000,-1148.2849989,0.00017087,2]
[426153299,1782183045000,-485.7107963,0.00017087,2]
[426153277,1782183045000,-183.19,0.00023394,7]
[426153274,1782183045000,-183.19,0.00023344,7]
[426153279,1782183045000,-161.72465388,0.00023409,5]
[426153276,1782183045000,-207.89,0.00023376,7]
[426153255,1782183045000,-183.19,0.00023094,7]
[426153256,1782183045000,-151.0,0.000231,5]
[426153249,1782183045000,-526.7,0.00023073,30]
[426153258,1782183045000,-500.0,0.00023117,8]
[426153257,1782183045000,-500.0,0.00023117,8]
[426153259,1782183045000,-282.0,0.00023123,9]
[426153272,1782183045000,-151.0,0.000233,9]
[426153261,1782183045000,-183.19,0.00023144,7]
[426153262,1782183045000,-207.89,0.00023176,7]
[426153263,1782183045000,-160.0,0.00023192,13]
[426153260,1782183045000,-207.89,0.00023126,7]
[426153264,1782183045000,-183.19,0.00023194,7]
[426153266,1782183045000,-183.19,0.00023244,7]
[426153273,1782183045000,-207.89,0.00023326,7]
[426153271,1782183045000,-1483.03,0.000233,2]
[426153270,1782183045000,-1483.03,0.000233,2]
[426153275,1782183045000,-1065.67971459,0.00023346,7]
[426153268,1782183045000,-183.19,0.00023294,7]
[426153267,1782183045000,-207.89,0.00023276,7]
[426153265,1782183045000,-207.89,0.00023226,7]
[426153269,1782183045000,-1483.03,0.000233,2]
[426153254,1782183045000,-190.80182153,0.00023076,2]
[426153305,1782183046000,-1585.68992899,0.00017087,2]
[426153309,1782183046000,-762.0,0.00023071,120]
[426153312,1782183046000,-938.15005767,0.00023444,2]
[426153311,1782183046000,-494.293216,0.00023444,2]
[426153310,1782183046000,-117275.17515314,0.00023444,2]
[426153307,1782183046000,-215.29337306,0.00018252,2]
[426153308,1782183046000,-308.26680205,0.0002307,30]
[426153306,1782183046000,-752.39258012,0.00017087,2]
[426153344,1782184232000,-3153.0,0.0001274,2]
[426153378,1782184238000,-500.0,0.00016438,2]
[426153350,1782184238000,-300.0,0.00012999,2]
[426153352,1782184238000,-194.454442,0.00014907,2]
[426153355,1782184238000,-500.0,0.00016338,2]
[426153351,1782184238000,-7219.58375714,0.00013,2]
[426153379,1782184238000,-109.77986036,0.00016438,2]
[426153353,1782184238000,-3440.0905847,0.00015312,2]
[426153354,1782184238000,-500.0,0.00016338,2]
[426153356,1782184238000,-500.0,0.00016338,2]
[426153357,1782184238000,-500.0,0.00016338,2]
[426153358,1782184238000,-500.0,0.00016338,2]
[426153359,1782184238000,-500.0,0.00016338,2]
[426153360,1782184238000,-205.99392981,0.00016338,2]
[426153361,1782184238000,-500.0,0.00016338,2]
[426153362,1782184238000,-500.0,0.00016338,2]
[426153349,1782184238000,-1847.0,0.0001274,2]
[426153365,1782184238000,-619.56204517,0.00016338,2]
[426153363,1782184238000,-500.0,0.00016338,2]
[426153375,1782184238000,-339.85336522,0.00016436,2]
[426153377,1782184238000,-509.30856387,0.00016438,2]
[426153373,1782184238000,-178.471232,0.00016344,2]
[426153374,1782184238000,-500.0,0.00016436,2]
[426153371,1782184238000,-500.0,0.00016338,2]
[426153376,1782184238000,-519.08740215,0.00016438,2]
[426153369,1782184238000,-500.0,0.00016338,2]
[426153370,1782184238000,-500.0,0.00016338,2]
[426153367,1782184238000,-500.0,0.00016338,2]
[426153368,1782184238000,-500.0,0.00016338,2]
[426153366,1782184238000,-500.0,0.00016338,2]
[426153364,1782184238000,-500.0,0.00016338,2]
[426153372,1782184238000,-500.0,0.00016338,2]
[426153389,1782184240000,-500.0,0.00016438,2]
[426153382,1782184240000,-390.22013964,0.00016438,2]
[426153383,1782184240000,-500.0,0.00016438,2]
[426153392,1782184240000,-500.0,0.00016438,2]
[426153388,1782184240000,-336.84949868,0.00016438,2]
[426153385,1782184240000,-500.0,0.00016438,2]
[426153391,1782184240000,-500.0,0.00016438,2]
[426153390,1782184240000,-500.0,0.00016438,2]
[426153387,1782184240000,-500.0,0.00016438,2]
[426153393,1782184240000,-500.0,0.00016438,2]
[426153386,1782184240000,-644.99436182,0.00016438,2]
[426153384,1782184240000,-500.0,0.00016438,2]
[426153405,1782184241000,-500.0,0.00016438,2]
[426153399,1782184241000,-500.0,0.00016438,2]
[426153397,1782184241000,-500.0,0.00016438,2]
[426153403,1782184241000,-500.0,0.00016438,2]
[426153407,1782184241000,-500.0,0.00016438,2]
[426153411,1782184241000,-504.92030969,0.00016438,2]
[426153415,1782184241000,-384.12768077,0.00016711,2]
[426153401,1782184241000,-505.53477289,0.00016438,2]
[426153418,1782184241000,-500.0,0.00016712,2]
[426153394,1782184241000,-500.0,0.00016438,2]
[426153413,1782184241000,-500.0,0.00016438,2]
[426153428,1782184241000,-500.0,0.00016712,2]
[426153440,1782184241000,-352.93076645,0.00016712,2]
[426153436,1782184241000,-500.0,0.00016712,2]
[426153432,1782184241000,-178.3724177,0.00016712,2]
[426153409,1782184241000,-592.79932389,0.00016438,2]
[426153430,1782184241000,-500.0,0.00016712,2]
[426153438,1782184241000,-500.0,0.00016712,2]
[426153426,1782184241000,-489.64277113,0.00016712,2]
[426153420,1782184241000,-512.12034255,0.00016712,2]
[426153434,1782184241000,-500.0,0.00016712,2]
[426153679,1782184243000,-500.0,0.00016986,2]
[426153662,1782184243000,-147.06923355,0.00016712,2]
[426153664,1782184243000,-500.0,0.00016712,2]
[426153665,1782184243000,-500.0,0.00016712,2]
[426153669,1782184243000,-500.0,0.00016712,2]
[426153671,1782184243000,-500.0,0.00016712,2]
[426153675,1782184243000,-500.0,0.00016712,2]
[426153673,1782184243000,-500.0,0.00016712,2]
[426153677,1782184243000,-245.6271099,0.00016741,2]
[426153680,1782184243000,-500.0,0.00016986,2]
[426153667,1782184243000,-500.0,0.00016712,2]
[426153690,1782184243000,-500.0,0.00016986,2]
[426153694,1782184243000,-205.75298413,0.00016986,2]
[426153704,1782184243000,-67.92096646,0.00016986,2]
[426153702,1782184243000,-634.26754808,0.00016986,2]
[426153701,1782184243000,-215.15733894,0.00016986,2]
[426153696,1782184243000,-294.24701587,0.00016986,2]
[426153698,1782184243000,-284.84266106,0.00016986,2]
[426153686,1782184243000,-209.77791341,0.00016986,2]
[426153692,1782184243000,-500.0,0.00016986,2]
[426153682,1782184243000,-107.30365655,0.00016986,2]
[426153685,1782184243000,-392.69634345,0.00016986,2]
[426153688,1782184243000,-500.0,0.00016986,2]
[426153746,1782184246000,-500.0,0.00016986,2]
[426153744,1782184246000,-432.07903354,0.00016986,2]
[426153748,1782184246000,-13451.4100614,0.00017,2]
[426153745,1782184246000,-500.0,0.00016986,2]
[426153747,1782184246000,-500.0,0.00016986,2]
[426153752,1782184246000,-500.0,0.0001726,2]
[426153749,1782184246000,-500.0,0.0001726,2]
[426153751,1782184246000,-500.0,0.0001726,2]
[426153753,1782184246000,-500.0,0.0001726,2]
[426153754,1782184246000,-500.0,0.0001726,2]
[426153755,1782184246000,-500.0,0.0001726,2]
[426153757,1782184246000,-500.0,0.0001726,2]
[426153756,1782184246000,-500.0,0.0001726,2]
[426153758,1782184246000,-500.0,0.0001726,2]
[426153759,1782184246000,-500.0,0.00017534,2]
[426153750,1782184246000,-500.0,0.0001726,2]
[426153776,1782184247000,-300.0,0.00019885,2]
[426153773,1782184247000,-417.15472785,0.00019785,2]
[426153775,1782184247000,-2664.06109978,0.00019825,2]
[426153772,1782184247000,-160.0,0.00019785,2]
[426153769,1782184247000,-162.64954464,0.00018877,3]
[426153770,1782184247000,-500.0,0.00018904,2]
[426153768,1782184247000,-500.0,0.0001863,2]
[426153764,1782184247000,-255.47292901,0.00017998,2]
[426153767,1782184247000,-500.0,0.00018356,2]
[426153760,1782184247000,-500.0,0.00017534,2]
[426153761,1782184247000,-514.5234727,0.00017808,2]
[426153763,1782184247000,-560.72557238,0.00017998,2]
[426153762,1782184247000,-500.0,0.00017808,2]
[426153765,1782184247000,-500.0,0.00017998,2]
[426153766,1782184247000,-500.0,0.00018082,2]
[426153777,1782184247000,-177.33116337,0.0001998,2]
[426153778,1782184247000,-255.40422255,0.00019985,2]
[426153771,1782184247000,-455.08,0.00019178,2]
[426153779,1782184247000,-162.89365684,0.00019985,2]
[426153787,1782184247000,-152.79536846,0.00019985,2]
[426153782,1782184247000,-190.03547812,0.00019985,2]
[426153783,1782184247000,-175.59430949,0.00019985,2]
[426153784,1782184247000,-174.68165904,0.00019985,2]
[426153785,1782184247000,-166.90188261,0.00019985,2]
[426153781,1782184247000,-157.1746265,0.00019985,2]
[426153788,1782184247000,-164.88522026,0.00019985,2]
[426153786,1782184247000,-220.17343966,0.00019985,2]
[426153789,1782184247000,-152.41980831,0.0002,2]
[426153780,1782184247000,-196.79215204,0.00019985,2]
[426153791,1782184247000,-57801.90359077,0.0002,2]
[426153790,1782184247000,-705.41528728,0.0002,2]
[426153792,1782184247000,-359.0,0.0002,2]
[426153774,1782184247000,-160.0,0.00019785,2]
[426153807,1782185221000,-742.52568304,9.045e-05,2]
[426153810,1782185413000,-393.83926,8.776e-05,2]
[426153811,1782185417000,-306.24,8.776e-05,2]
[426153812,1782185418000,-306.29279671,8.776e-05,2]
[426153813,1782185419000,-254.7799585,8.776e-05,2]
[426153814,1782185420000,-539.73679863,8.776e-05,2]
[426153816,1782185421000,-306.24,8.776e-05,2]
[426153815,1782185421000,5000.0,8.604e-05,2]
[426153817,1782185422000,-464.63348885,8.776e-05,2]
[426153818,1782185423000,-580.90124129,8.776e-05,2]
[426153819,1782185424000,-764.15596448,8.776e-05,2]
[426154029,1782185434000,-1083.18049154,8.776e-05,2]
[426154034,1782185434000,-257.80936188,9.999e-05,2]
[426154030,1782185434000,-433.45811007,8.865e-05,2]
[426154035,1782185434000,-500.0,9.999e-05,2]
[426154031,1782185434000,-200.0,9.471e-05,2]
[426154033,1782185434000,-500.0,9.999e-05,2]
[426154036,1782185434000,-500.0,9.999e-05,2]
[426154037,1782185434000,-500.0,9.999e-05,2]
[426154032,1782185434000,-300.0,9.998e-05,2]
[426154040,1782185434000,-500.0,9.999e-05,2]
[426154039,1782185434000,-347.05123393,9.999e-05,2]
[426154038,1782185434000,-500.0,9.999e-05,2]
[426154062,1782185435000,-500.0,0.00016712,2]
[426154056,1782185435000,-500.0,0.00016438,2]
[426154057,1782185435000,-500.0,0.00016438,2]
[426154052,1782185435000,-744.893667,0.000154,2]
[426154060,1782185435000,-179.51324463,0.00016712,2]
[426154054,1782185435000,-500.0,0.00016438,2]
[426154053,1782185435000,-500.0,0.00016438,2]
[426154051,1782185435000,-178.471232,0.00015068,2]
[426154045,1782185435000,-500.0,9.999e-05,2]
[426154048,1782185435000,-1453.07837163,0.0001,2]
[426154047,1782185435000,-3310.02939123,0.0001,2]
[426154041,1782185435000,-272.9022626,9.999e-05,2]
[426154046,1782185435000,-11352.71906117,0.0001,2]
[426154050,1782185435000,-261.207449,0.00013699,2]
[426154061,1782185435000,-500.0,0.00016712,2]
[426154043,1782185435000,-500.0,9.999e-05,2]
[426154044,1782185435000,-408.5825082,9.999e-05,2]
[426154042,1782185435000,-500.0,9.999e-05,2]
[426154055,1782185435000,-500.0,0.00016438,2]
[426154049,1782185435000,-500.0,0.00013698,2]
[426154059,1782185435000,-500.0,0.00016438,2]
[426154077,1782185435000,-294.76134864,0.00019799,2]
[426154079,1782185435000,-17609.12040221,0.000198,2]
[426154078,1782185435000,-242.50790066,0.00019799,2]
[426154080,1782185435000,-433.45811007,0.000198,2]
[426154073,1782185435000,-160.0,0.0001976,2]
[426154072,1782185435000,-2000.0,0.00019449,7]
[426154071,1782185435000,-161.7217826,0.00019203,2]
[426154070,1782185435000,-150.42191319,0.00018933,2]
[426154069,1782185435000,-183.015,0.00018933,2]
[426154074,1782185435000,-160.0,0.0001976,2]
[426154068,1782185435000,-176.7945989,0.00018283,2]
[426154064,1782185435000,-500.0,0.00016712,2]
[426154065,1782185435000,-500.0,0.00016712,2]
[426154076,1782185435000,-500.0,0.00019799,2]
[426154063,1782185435000,-500.0,0.00016712,2]
[426154067,1782185435000,-156.77,0.00017808,2]
[426154066,1782185435000,-206.27439861,0.00016712,2]
[426154075,1782185435000,-417.15472785,0.0001976,2]
[426154058,1782185435000,-500.0,0.00016438,2]
[426154101,1782185438000,-1625.19056592,0.000198,2]
[426154099,1782185438000,-4213.05648834,0.0001015,2]
[426154102,1782185438000,-32943.07998254,0.000198,2]
[426154100,1782185438000,-36280.01945894,0.000198,2]
[426154181,1782185441000,-271.89295989,0.000198,2]
[426154179,1782185441000,-490.50929889,0.000198,2]
[426154497,1782185443000,-304.25747825,0.000198,2]
[426154526,1782185444000,-11167.00870101,0.000198,2]
[426154528,1782185444000,-6597.12948461,0.000198,2]
[426154595,1782185447000,-26696.4824819,0.0002,2]
[426154594,1782185447000,-35081.44868248,0.0002,2]
[426154592,1782185447000,-164.82750843,0.000199,2]
[426154593,1782185447000,-170.2694817,0.0001998,2]
[426154590,1782185447000,-300.0,0.000199,2]
[426154591,1782185447000,-156.00340873,0.000199,2]
[426154588,1782185447000,-677797.67851186,0.000198,2]
[426154589,1782185447000,-300.0,0.000198,3]
[426154587,1782185447000,-742.52461939,0.00019602,2]
[426154596,1782185470000,290.30906716,0.00023088,30]
[426154599,1782185654000,2804.92779776,0.00011,13]
[426154601,1782185844000,500.0,0.00022603,120]
[426154612,1782186264000,-300.0,9.999e-05,2]
[426154613,1782186264000,-7596.37489443,0.0001,2]
[426154614,1782186264000,-752.80075204,0.0001,2]
[426154654,1782186632000,-304.8001815,0.00013425,2]
[426154786,1782186639000,-501.32268689,0.00016438,2]
[426154784,1782186639000,-501.57712624,0.00013698,2]
[426154782,1782186639000,-2275.17757323,0.00013425,2]
[426154780,1782186639000,-2420.02224527,0.00013425,2]
[426154787,1782186639000,-197.577902,0.00017387,2]
[426154798,1782186639000,-3307.42924565,0.000195,2]
[426154789,1782186639000,-252.59417666,0.00017919,2]
[426154793,1782186639000,-182.149,0.00018932,2]
[426154796,1782186639000,-335.95384584,0.00019499,2]